Cogmind - Beta 14 @@@ ROGUE MODE // 2024.09.18 @ 18:10:04 Player: Dull Result: Destroyed by Y2-YH8(r) with Ripteeth Performance ------------- Evolutions (0) 0 Regions Visited (4) 800 Robots Destroyed (55) 275 Value Destroyed (1601) 1601 Prototype IDs (15) 300 Alien Tech Used (0) 0 Bonus (136) 136 TOTAL SCORE: 3112 Bonus ------- Follower Combat Kills 136 Cogmind --------- Core Integrity 0/250 Matter 263/300 Energy 100/100 System Corruption 1% Temperature Cool (0) Movement Core (50) Location -8/Scraptown Parts ------- > --- POWER (1) -------- (None) > --- PROPULSION (2) --- (None) > --- UTILITY (2) ------ (None) > --- WEAPON (2) ------- Experimental Plasma Cutter > --- INVENTORY (5) ---- Subdweller Monowheel ECM Suite Cobbler Unit Riot Gun Peak State ------------ > --- POWER ------------ Subdweller Power Source > --- PROPULSION ------- Spiked Treads Armored Treads > --- UTILITY ---------- Humpback > --- WEAPON ----------- Battle Cannon Battle Cannon > --- INVENTORY -------- Ion Engine Ion Engine Light Ion Engine Subdweller Power Source Spiked Treads Makeshift Leg Subdweller Monowheel Subdweller Monowheel Subdweller Monowheel Subdweller Monowheel Makeshift Flight Unit Disposable Heat Sink Disposable Heat Sink Disposable Heat Sink Subdweller Optics Makeshift Light Armor Plating Gun Armor Hacking Suite Makeshift Hacking Suite Makeshift System Shield Cobbler Unit Riot Gun Subdweller Laser Subdweller Laser Autogun Autogun Battle Rifle Subdweller Machine Gun Subdweller Machine Gun Grenade Launcher Subdweller Shrapnel Launcher Makeshift Sword Makeshift Spear Scrap Shield Fragment [Rating: 21] Favorites ----------- Power Subdweller Power Source Engine Subdweller Power Source Propulsion Spiked Treads Treads Spiked Treads Leg Aluminum Leg Utility Humpback Device Disposable Heat Sink Storage Humpback Protection Makeshift Light Armor Plating Weapon Subdweller Machine Gun Energy Gun Subdweller Laser Energy Cannon Subdweller Beam Cannon Ballistic Gun Subdweller Machine Gun Ballistic Cannon Battle Cannon Launcher Subdweller Shrapnel Launcher Special Weapon Experimental Plasma Cutter Slashing Weapon Makeshift Sword Piercing Weapon Makeshift Spear Build | -11 -10 -10 -8 -8 ------- Run | Yrd Mat Sub Rec Scr Slots Evolved . | . . . . . Power . | . . . . . Propulsion . | . . . . . Utility . | . . . . . Weapon . | . . . . . Parts Attached 68 | 4 9 51 1 3 Power 12 | . . 11 . 1 Engine 12 | . . 11 . 1 Core . | . . . . . Reactor . | . . . . . Propulsion 11 | 2 2 6 1 . Treads 11 | 2 2 6 1 . Leg . | . . . . . Wheel . | . . . . . Hover . | . . . . . Flight . | . . . . . Utility 17 | 1 4 12 . . Device 6 | 1 1 4 . . Storage 3 | . 1 2 . . Processor . | . . . . . Hackware . | . . . . . Protection 8 | . 2 6 . . Artifact . | . . . . . Weapon 28 | 1 3 22 . 2 Energy Gun 5 | 1 1 3 . . Energy Cannon 1 | . . 1 . . Ballistic Gun 14 | . 2 12 . . Ballistic Cannon 2 | . . 2 . . Launcher 2 | . . 2 . . Special Weapon 1 | . . . . 1 Impact Weapon . | . . . . . Slashing Weapon 1 | . . . . 1 Piercing Weapon 2 | . . 2 . . Special Melee Weapon . | . . . . . Unidentified Prototypes 2 | . 1 . . 1 Parts Lost 11 | . . 4 . 7 Power 1 | . . 1 . . Propulsion 2 | . . 1 . 1 Utility 4 | . . 2 . 2 Weapon 4 | . . . . 4 Highest Loss Streak 7 | . . 2 . 7 To Critical Strikes 1 | . . 1 . . Average Slot Usage (%) 84 | . 99 88 85 56 Engine 13 | . 14 13 14 13 Treads 27 | . 27 27 28 27 Device 1 | . 6 2 . . Storage 10 | . 14 8 14 13 Protection 4 | . 6 6 . . Energy Gun 1 | . . 1 . . Ballistic Gun 16 | . 27 23 . . Ballistic Cannon 6 | . . 2 28 . Peak Build Rating 21 | 7 10 20 21 21 Average Rating 15 | 6 9 15 20 16 On Entrance 12 | 6 7 10 19 21 Naked Turns 10 | . . . . 10 Heaviest Build 211 | 13 22 211 211 211 Greatest Support 40 | 40 40 40 40 40 Greatest Overweight (x) 5 | . . 5 5 5 Average Overweight (x) 1 | . . 1 5 4 Largest Inventory Capacity 35 | 8 10 35 35 35 Average Capacity 25 | 8 8 22 35 34 Most Carried 35 | 7 10 35 35 35 Average Carried 20 | 5 8 14 34 34 Final Capacity 35 | 8 10 35 35 5 Final Carried 35 | 3 10 35 35 5 Class Distribution -------------------- 65% | Hauler-Mutant 21% | Mutant 4% | Scavenger-Mutant 4% | Subdweller-Mutant Dominant Class ---------------- Mutant | -10/Materials Hauler-Mutant | -10/Subcaves Hauler-Mutant | -8/Recycling Hauler-Mutant | -8/Scraptown Resources | -11 -10 -10 -8 -8 ----------- Run | Yrd Mat Sub Rec Scr Matter Collected 2130 | 272 389 1174 264 31 Remotely 315 | 40 275 . . . Salvage Created 1878 | 106 617 955 200 . Parts 134 | 4 46 78 6 . Haulers Intercepted 2 | . 2 . . . Recyclers Shooed 1 | . . . 1 . Parts Field Recycled . | . . . . . Retrieved Matter . | . . . . . Parts Self-Destructed 15 | . . 15 . . Prevented . | . . . . . Kills | -11 -10 -10 -8 -8 ------- Run | Yrd Mat Sub Rec Scr Combat Hostiles Destroyed 44 | . 9 30 5 . Guns 28 | . 9 19 . . Cannons 7 | . . 2 5 . AOE 9 | . . 9 . . Classes Destroyed 15 | 2 6 5 2 . Builder 2 | . 2 . . . Tunneler 1 | 1 . . . . Hauler 2 | . 2 . . . Recycler 2 | 1 1 . . . Operator 1 | . 1 . . . Turret 1 | . . 1 . . Watcher 3 | . 3 . . . Swarmer 10 | . 3 7 . . Grunt 8 | . 6 1 1 . Sentry 3 | . . 1 2 . Hunter 1 | . . . 1 . Programmer 1 | . . . 1 . Artisan 1 | . . 1 . . Cobbler 2 | . . 2 . . Subdweller 21 | . . 21 . . Best Kill Streak 6 | 1 4 6 2 . Combat Bots Only 5 | . 3 5 2 . Max Kills in Single Turn 3 | 1 2 3 1 . Gunslinging 1 | . 1 . . . Exploded 3 | . . 3 . . Melee . | . . . . . Uniques/NPCs Destroyed . | . . . . . Combat | -11 -10 -10 -8 -8 -------- Run | Yrd Mat Sub Rec Scr Hostile Shots Fired 219 | . 24 144 33 18 Missed 68 | . 4 54 7 3 Damage Taken 2574 | . 294 1865 369 46 Core 250 | . 11 178 32 29 Absorbed by Shields 29 | . . . 29 . Regen/Repaired (Parts) 173 | . 173 . . . Core Remaining (%) 100 | 100 . . . . Volleys Fired 187 | 8 43 126 10 . Largest 2 | 2 2 2 2 . Hottest 110 | 40 70 110 78 . Shots Fired 357 | 16 86 233 22 . Gun 313 | 16 86 211 . . Cannon 37 | . . 15 22 . Launcher 7 | . . 7 . . Special . | . . . . . Kinetic 313 | 16 77 198 22 . Thermal 33 | . 9 24 . . Explosive 4 | . . 4 . . Electromagnetic 7 | . . 7 . . Robot Hit Streak 20 | 3 10 20 8 . Robot Miss Streak 3 | 2 2 3 1 . Penetration Max . | . . . . . Secondary Targets 1 | . 1 . . . Max Gunslinging Chain 1 | . 1 . . . Shots Hit Robots 216 | 9 47 146 14 . Core Hits 94 | 4 25 59 6 . Critical Kills 1 | . 1 . . . Critical Parts Destroyed . | . . . . . Critical Strikes 6 | . 3 2 1 . Burn 2 | . 2 . . . Destroy 2 | . 1 1 . . Blast 2 | . . 1 1 . Melee Attacks 5 | . . 4 . 1 Impact . | . . . . . Slashing 1 | . . . . 1 Piercing 4 | . . 4 . . Sneak Attacks . | . . . . . Combat Hostiles . | . . . . . Follow-up Attacks . | . . . . . Damage Inflicted 4636 | 100 739 3494 303 . Guns 3408 | 100 739 2569 . . Cannons 548 | . . 246 302 . Explosions 679 | . . 679 . . Melee . | . . . . . Ramming 1 | . . . 1 . Kinetic 3834 | 100 678 2754 302 . Thermal 451 | . 61 390 . . Explosive 269 | . . 269 . . Electromagnetic 81 | . . 81 . . Impact . | . . . . . Slashing . | . . . . . Piercing . | . . . . . Highest Corruption 1 | . . . 1 1 Average Corruption 1 | . . . 1 1 Corruption Purged . | . . . . . Corruption Blocked . | . . . . . Effects 34 | . . . 22 12 Message Errors 10 | . . . 9 1 Matter Fused 7 | . . . 3 4 Heat Flow Errors 4 | . . . 2 2 Energy Discharges 5 | . . . 2 3 Data Loss (minor) 3 | . . . 2 1 Data Loss (major) 1 | . . . . 1 Misfires 2 | . . . 2 . Alerts 2 | . . . 2 . Overload Shots . | . . . . . Overflow Damage 16 | . . 15 1 . Projectiles 1 | . . . 1 . Explosions 15 | . . 15 . . Melee . | . . . . . Knockbacks 6 | . . 1 5 . Impact . | . . . . . Kinetic 5 | . . 1 4 . Secondary 1 | . . . 1 . Self-Inflicted Damage 70 | . . 70 . . Shots 2 | . . 2 . . Rammed 1 | . . . 1 . Targets Rammed 1 | . . . 1 . Kicked . | . . . . . Crushed . | . . . . . Highest Temperature 197 | . 75 66 139 197 Average Temperature 26 | . 14 34 22 92 Received Heat Transfer 472 | . 105 321 46 . Siege Activations . | . . . . . Robots Corrupted . | . . . . . Combat Hostiles . | . . . . . Parts Fried . | . . . . . Impact Corruptions . | . . . . . Robots Melted . | . . . . . Combat Hostiles . | . . . . . Parts Melted 1 | . . 1 . . Heat Transferred 755 | . 333 422 . . Parts Sabotaged . | . . . . . Parts Stolen 1 | . . . . 1 Parts Stripped . | . . . . . Power Chain Reactions 1 | . . 1 . . Alert | -11 -10 -10 -8 -8 ------- Run | Yrd Mat Sub Rec Scr Peak Influence 125 | 10 125 . 115 . Initial 43 | . 6 . 43 . Average 28 | 6 35 . 25 . Maximum Alert Level . | . . . . . Low Security (%) 100 | 100 100 . 100 . Level 1 . | . . . . . Level 2 . | . . . . . Level 3 . | . . . . . Level 4 . | . . . . . Level 5 . | . . . . . High Security . | . . . . . Max Security . | . . . . . Squads Dispatched 1 | . 1 . . . Investigation . | . . . . . Extermination . | . . . . . Reinforcement 1 | . 1 . . . Assault . | . . . . . Garrison . | . . . . . Intercept . | . . . . . Searches Triggered . | . . . . . Construction Impeded . | . . . . . Haulers Reinforced . | . . . . . Active Scanning Responses . | . . . . . Cargo Convoy Interrupts . | . . . . . Stealth | -11 -10 -10 -8 -8 --------- Run | Yrd Mat Sub Rec Scr Distress Signals 3 | . 1 . 2 . Communications Jammed . | . . . . . Distress Signals . | . . . . . Times Spotted 61 | . 13 33 11 4 Peak Tracking Total 6 | . 3 6 5 3 Tactical Retreats 4 | . . 1 3 . Traps | -11 -10 -10 -8 -8 ------- Run | Yrd Mat Sub Rec Scr Traps Triggered 3 | . 2 1 . . Indirectly . | . . . . . Trap Hack Attempts . | . . . . . Triggered . | . . . . . Disarmed 1 | . 1 . . . Reprogrammed . | . . . . . Reused . | . . . . . Traps Extracted . | . . . . . Installed . | . . . . . Triggered . | . . . . . Machines | -11 -10 -10 -8 -8 ---------- Run | Yrd Mat Sub Rec Scr Machines Disabled 5 | . . 4 . 1 Max in Single Turn 3 | . . 3 . 1 Machines Repaired . | . . . . . Machines Dismantled . | . . . . . Machines Sabotaged . | . . . . . Overloaded Fab Kills . | . . . . . Hacking | -11 -10 -10 -8 -8 --------- Run | Yrd Mat Sub Rec Scr Machines Accessed 17 | . 10 2 4 1 Terminals 11 | . 7 . 4 . Fabricators . | . . . . . Repair Stations 1 | . 1 . . . Recycling Units 2 | . 2 . . . Scanalyzers . | . . . . . Garrison Access . | . . . . . Total Hacks 59 | . 37 4 9 9 Successful 41 | . 23 4 5 9 Failed 18 | . 14 . 4 . Catastrophic 1 | . 1 . . . Database Lockouts . | . . . . . Manual 32 | . 27 . 5 . Terminals 33 | . 24 . 9 . Fabricators . | . . . . . Repair Stations 6 | . 6 . . . Recycling Units 7 | . 7 . . . Scanalyzers . | . . . . . Garrison Access . | . . . . . Terminal Hacks 21 | . 6 4 2 9 Record 12 | . . 3 . 9 Part Schematic 1 | . . . 1 . Robot Analysis 4 | . 4 . . . Prototype ID Bank 1 | . . . 1 . Unreport Threat 1 | . 1 . . . Disarm Traps 1 | . 1 . . . Derelict Proto ID Bank 1 | . . 1 . . Fabricator Hacks . | . . . . . Repair Station Hacks 6 | . 6 . . . Scan Component 3 | . 3 . . . Repair 3 | . 3 . . . Recycling Unit Hacks . | . . . . . Scanalyzer . | . . . . . Garrison Access Hacks . | . . . . . Unauthorized Hacks 14 | . 11 . 3 . Terminals 9 | . 6 . 3 . Botnet 9 | . 6 . 3 . Fabricators . | . . . . . Repair Stations . | . . . . . Recycling Units 5 | . 5 . . . Monitor 1 | . 1 . . . Reject 2 | . 2 . . . Mask 2 | . 2 . . . Scanalyzers . | . . . . . Garrison Access . | . . . . . Data Cores Recovered . | . . . . . Used . | . . . . . Hacking Detections 13 | . 9 . 4 . Full Trace Events . | . . . . . Feedback Events . | . . . . . Feedback Blocked . | . . . . . Robot Schematics Acquired . | . . . . . Robots Built . | . . . . . Authchips . | . . . . . Time . | . . . . . Total Robot Build Rating . | . . . . . Part Schematics Acquired 1 | . . . 1 . Parts Built . | . . . . . Authchips . | . . . . . Time . | . . . . . Total Part Build Rating . | . . . . . Parts Repaired 3 | . 3 . . . Time 78 | . 78 . . . Parts Recycled . | . . . . . Recycled Matter . | . . . . . Retrieved Matter . | . . . . . Retrieved Components . | . . . . . Parts Scanalyzed . | . . . . . Part Schematics Acquired . | . . . . . Parts Damaged . | . . . . . Bothacking | -11 -10 -10 -8 -8 ------------ Run | Yrd Mat Sub Rec Scr Used RIF Installer . | . . . . . Robots Hacked . | . . . . . Non-combat . | . . . . . Combat . | . . . . . Robot Hacks Applied . | . . . . . Relay Couplers Released . | . . . . . Fabnet Peak Effective % . | . . . . . Robots Rewired 14 | . . . 14 . Allies Hacked . | . . . . . Hacks Repelled . | . . . . . Allies | -11 -10 -10 -8 -8 -------- Run | Yrd Mat Sub Rec Scr Total Allies 14 | . . . 14 . Largest Group 9 | . . . 9 4 Highest-Rated Group 118 | . . . 118 58 Highest-Rated Ally 27 | . . . 27 27 Total Orders . | . . . . . Ally Attacks 31 | . . . 30 1 Total Damage 687 | . . . 673 14 Kills 5 | . . . 5 . Allies Corrupted . | . . . . . Allies Melted . | . . . . . Intel | -11 -10 -10 -8 -8 ------- Run | Yrd Mat Sub Rec Scr Robot Analysis Total 4 | . 4 . . . Derelict Logs Recovered 2 | . . 2 . . Drone Launches . | . . . . . Drone Recoveries . | . . . . . Exploration | -11 -10 -10 -8 -8 ------------- Run | Yrd Mat Sub Rec Scr Turns Passed 19998 | 76 1705 11816 3549 2852 Spaces Moved 5630 | 36 894 3681 534 485 Core 25 | . . . . 25 Treads 5575 | 6 894 3681 534 460 Legs 30 | 30 . . . . Wheels . | . . . . . Hover . | . . . . . Flight . | . . . . . Fastest Speed 50 | 120 160 160 610 50 Average Speed 324 | 126 160 290 614 585 Slowest Speed 615 | 160 160 610 615 615 Overloaded Moves . | . . . . . Propulsion Burnouts . | . . . . . Robots Hopped . | . . . . . Cave-ins Triggered . | . . . . . Exploration Rate (%) 66 | 3 99 97 97 36 Regions Visited 4 Branch Regions 3 Pre-discovered Areas 2 | . . 2 . . Known Exits Taken . | . . . . . Unknown Exits Taken 4 | 1 1 1 1 . Scrap Searched 13 | . . 10 . 3 Spaces Dug . | . . . . . Terrain Destroyed 73 | . . 68 5 . Melee . | . . . . . Projectile 7 | . . 2 5 . AOE 66 | . . 66 . . Terrain Rammed . | . . . . . Walls Destroyed . | . . . . . Machines Disabled . | . . . . . Actions | -11 -10 -10 -8 -8 --------- Run | Yrd Mat Sub Rec Scr Total 7018 | 52 1099 4591 780 496 Wait 831 | . 134 613 82 2 Move 5626 | 35 893 3680 533 485 Hop . | . . . . . Pick Up 78 | 1 11 64 1 1 Fast Attach 23 | 1 4 17 . 1 Attach 4 | . . 3 . 1 Detach 1 | . . 1 . . Swap 41 | 3 5 31 1 1 Drop 67 | 4 9 48 2 4 Fire 187 | 8 43 126 10 . Melee 5 | . . 4 . 1 Ram . | . . . . . Kick . | . . . . . Crush 1 | . . . 1 . Escape Stasis . | . . . . . Rewire 150 | . . . 150 . Trap . | . . . . . Miscellaneous 4 | . . 4 . . Route ------- -11/Scrapyard -10/Materials (discovered 5 exits: [*Mat x3] / [*Min] / *Sub) -10/Subcaves (discovered 3 exits: [*Mat x2] / *Rec) -8/Recycling (discovered 2 exits: [*Fac] / *Scr) -8/Scraptown History --------- Turn | Location | Event 1 | -11/Scrapyard | Discovered new exit (range 3) 77 | -11/Scrapyard | Entered Materials 318 | -10/Materials | Build established: Mutant 440 | -10/Materials | Discovered new exit (range 11) 527 | -10/Materials | Discovered new exit (range 16) 1027 | -10/Materials | Discovered new exit (range 15) 1159 | -10/Materials | Discovered new exit (range 9) 1589 | -10/Materials | Repaired Lgt. Treads 1617 | -10/Materials | Repaired Lgt. Treads 1644 | -10/Materials | Repaired Lgt. Armor Plating 1774 | -10/Materials | Discovered new exit (range 7) 1782 | -10/Materials | Entered Subcaves 2136 | -10/Subcaves | Disturbed a concealed Subdweller 2317 | -10/Subcaves | Shifting Twisted Machinery released Mak. System Shield 2321 | -10/Subcaves | Shifting Twisted Machinery released Riot Gun 2484 | -10/Subcaves | Disturbed a concealed Subdweller 2527 | -10/Subcaves | Disturbed a concealed Subdweller 2585 | -10/Subcaves | Shifting Twisted Machinery released Flamer 2695 | -10/Subcaves | Shifting Twisted Machinery released Piercing Trap 2782 | -10/Subcaves | Learned 8 Materials zone layouts 2809 | -10/Subcaves | Build established: Subdweller-Mutant 2862 | -10/Subcaves | Ambushed by Subdweller buried in earth 2865 | -10/Subcaves | Ambushed by Subdweller buried in earth 2887 | -10/Subcaves | Discovered new exit (range 13) 3195 | -10/Subcaves | Build established: Scavenger-Mutant 3205 | -10/Subcaves | Visited 4L-MR0's lab 3566 | -10/Subcaves | Shifting Twisted Machinery released Mak. Hammer 4154 | -10/Subcaves | Build established: Subdweller-Mutant 4293 | -10/Subcaves | A swath of the cavern ceiling suddenly collapsed 4478 | -10/Subcaves | Core integrity fell below 50% 4746 | -10/Subcaves | Build established: Mutant 4783 | -10/Subcaves | Learned location of Zion (-6) 4783 | -10/Subcaves | Met a Zionite searching for "candidates" 4868 | -10/Subcaves | Visited Clippyterm 4873 | -10/Subcaves | Learned Research machine intel 4953 | -10/Subcaves | Discovered new exit (range 15) 5076 | -10/Subcaves | Disturbed a concealed Subdweller 5987 | -10/Subcaves | Shifting Twisted Machinery released Mak. Sword 6019 | -10/Subcaves | Discovered new exit (range 15) 6232 | -10/Subcaves | Build established: Derelict-Mutant 6837 | -10/Subcaves | Build established: Hauler-Mutant 12120 | -10/Subcaves | Found Gun Armor 13598 | -10/Subcaves | Entered Recycling 14391 | -8/Recycling | Core integrity fell below 20% 14439 | -8/Recycling | Lost 5 allies 14670 | -8/Recycling | Lost 3 allies 15410 | -8/Recycling | Discovered new exit (range 8) 15976 | -8/Recycling | Scanned before Scraplab entrance 17025 | -8/Recycling | Entered Scraplab 17074 | -8/Recycling | Discovered new exit (range 3) 17147 | -8/Recycling | Entered Scraptown 17147 | -8/Scraptown | Accompanied by 4 allies 19624 | -8/Scraptown | Visited TADAMA 19975 | -8/Scraptown | Attacked by Scraptown defenders 19983 | -8/Scraptown | Released all parts (4) 19993 | -8/Scraptown | Found Prototype Special Weapon 19993 | -8/Scraptown | Identified Exp. Plasma Cutter 19999 | -8/Scraptown | Destroyed by Y2-YH8(r) with Ripteeth Last Messages --------------- 19976_ Defender 3e suffers critical hit (Burn). 19981_ QQ-OKI(r) follow-up attacks with Ripteeth. 19981_ Arm. Treads ripped off. 19982_ QQ-OKI(r) follow-up attacks with Ripteeth. 19983_ Released Mak. Sword. 19983_ Released Spk. Treads. 19983_ Released Humpback. 19983_ Sub. Laser crushed and broken. 19983_ Autogun crushed and broken. 19983_ Battle Rifle crushed and broken. 19983_ Disposable Heat Sink crushed and broken. 19983_ Sub. Shrapnel Launcher crushed and broken. 19983_ Hacking Suite crushed and broken. 19983_ Mak. Flight Unit crushed and broken. 19983_ Released Imp. Ion Engine. 19983_ Imp. Ion Engine crushed and broken. 19993_ Acquired Prototype Special Weapon. 19993_ Identified Exp. Plasma Cutter. 19998_ QQ-OKI(r) follow-up attacks with Ripteeth. [Achievement: This Is Interesting...] Map ----- +----------------------------------------------------+ | ###?????????????????????????????????????# | | ""#?????????????????????????????????????# | | "#?????????????????????????????????????# | | "#???????????????? ????????????????# | | "#???????????????# #???????????????# | | "#???????????????# #???????????????# | | ""#??????????? ???# #???????????????# | | """#?????????? ??# #???????????????# | | """#??????????# ?# #???????????????# | | """#??????????# ?# #???????????????# | | ###???????????? # ################# | | ####???????????? # | | X""#?????????????? | | "#???????????????# | | "#???????????????# | | "#?????????####### | | "#????????## | | "#????????# ]! | | """########### *=! | | ############!############## ### | | #?#""""""""/""#????# ## | | """##"" """### #?# **[!=[!#????# ## | | "##"" "#?# #?# !=&==*/#????# ## | | "##"" "#?# #?# ["""""#????# ## | | "##"" "#?# #?# ########????# """" ## | | " "##" "#?# #?#" #@r #????# """"" ## | | " "##" "#?# #?#"" jr"""" #????# """"" ## | | """##""""""#?# #?#""""" """" #????# ## | | ############?# #?#""""" """" #????# ## | | ###??#####???# #?#"" """" #????############ | | """??#"""#???# #?#""""" #???????????????# | | "#?#" "#???# #?#############????############ | | " "#?# #???# #??????????????????#""""""""""" | | " "#?# ]##### #??????????????????#""""" """"" | | " "#?# ] ##???????????#######"""" " "" | | " "#?# #???????????# | | " "#?# ##?########### #####"" "" "" " | | " "#?##### ### ##??#"""""##""" "#??#""""""""""" | | " "#?????# #?###???#"" ""##""" "#??#""""""""""" | | " "####### ######??#"" "##""" "#??############ | | " "##""""" """""#??#" ""##"" "#?############# | | "##"""%" " "#??#"" ""##"" "#?#"""""""""""# | | """##" * "#??#"" ""##" "#??""=]=! = "# | | #####""""" """""#??#"" ""##"| "#?#"" !=![!] "# | | ????###### ######??#" ""##"" "#?#"" "# | | ########## #########"" ""##"" ""###""" """""""# | | | | | | """" """"######"""" """""######""" """##""" """### | | """ """#????#" "#????#"" |"##"" "#?? | +----------------------------------------------------+ Best States ------------- Heat Dissipation 25 Coolant Potential 100 Energy Generation 15 Energy Capacity 265 Matter Stores 300 Matter Capacity 300 Sight Range 16 Terrain Scan Density 10 Armor Coverage 800 Evasion (%) 50 Recoil Reduction 2 Item Schematics ----------------- Hpw. Tractor Beam | -8/Recycling | Hacked Robot Schematics ------------------ None Fabricated ------------ Nothing Alien Tech Used ----------------- None Achievements -------------- This Is Interesting... Challenges ------------ None Game ------ Seed AccelerationEncryptedGuard Manual? 0 Play Time 00:45:29 Cumulative 111.5 hours Start 2024.09.18 @ 17:00:04 End 2024.09.18 @ 18:10:04 Sessions 5 Manual Loads 0 Difficulty Rogue Special Mode None Game No. 156 Rogue 156 Adventurer 0 Explorer 0 Win Type - Total 1 Types 1/0/0/0/0/0/0/0/0 Lore% 26 Gallery% 57 Achievement% 45 Wizard Run 0 Options --------- Layout 0 ASCII 0 Keyboard 0 Movement Mouse Keybinds 1 Fullscreen 1 Font 18/TerminusBold Map View 76x50 Zoom Use 0% Tactical HUD 1 Map Filters NONE Filters NONE Steam 1 RUN: 5482ffd4-b122-42c4-a7c8-ee708d365437